[Event "Early-Titled-Tuesday-Blitz-April-23-2024"]
[Site "Chess.com"]
[Date "2024.04.23"]
[Round "11"]
[White "KononenkoD"]
[Black "klercaku"]
[Result "1-0"]
[WhiteElo "2597"]
[BlackElo "2254"]
[TimeControl "180+1"]
[EndTime "10:11:01 PDT"]
[Termination "KononenkoD won by resignation"]

1. e4 {[%clk 0:02:59.4]} 1... e5 {[%clk 0:02:59.6]} 2. Nf3 {[%clk 0:02:59.4]}
2... Nc6 {[%clk 0:02:59.8]} 3. d4 {[%clk 0:02:59.5]} 3... exd4 {[%clk
0:03:00.7]} 4. Nxd4 {[%clk 0:03:00.2]} 4... Nf6 {[%clk 0:02:56.6]} 5. Nc3 {[%clk
0:02:59.4]} 5... Bb4 {[%clk 0:02:56.6]} 6. Nxc6 {[%clk 0:02:58.8]} 6... bxc6
{[%clk 0:02:57.5]} 7. Bd3 {[%clk 0:02:59.2]} 7... d5 {[%clk 0:02:58.2]} 8. O-O
{[%clk 0:02:59.1]} 8... Bxc3 {[%clk 0:02:52.9]} 9. bxc3 {[%clk 0:02:58.3]} 9...
dxe4 {[%clk 0:02:53.3]} 10. Bc4 {[%clk 0:02:57.1]} 10... Qxd1 {[%clk 0:02:51.4]}
11. Rxd1 {[%clk 0:02:56.7]} 11... O-O {[%clk 0:02:51.9]} 12. Bf4 {[%clk
0:02:54.5]} 12... Rb8 {[%clk 0:02:33]} 13. Bxc7 {[%clk 0:02:47.7]} 13... Rb2
{[%clk 0:02:33.4]} 14. Bb3 {[%clk 0:02:46.1]} 14... Ne8 {[%clk 0:01:39.1]} 15.
Bf4 {[%clk 0:02:35.2]} 15... Be6 {[%clk 0:01:24.3]} 16. Bc1 {[%clk 0:02:34.8]}
16... Bxb3 {[%clk 0:01:23.9]} 17. Bxb2 {[%clk 0:02:31.3]} 17... Bxc2 {[%clk
0:01:23]} 18. Rd7 {[%clk 0:02:30.2]} 18... Nf6 {[%clk 0:01:21.2]} 19. Rxa7
{[%clk 0:02:29.5]} 19... Rb8 {[%clk 0:01:16]} 20. Bc1 {[%clk 0:02:28.1]} 20...
Nd5 {[%clk 0:01:15.1]} 21. c4 {[%clk 0:02:22.4]} 21... Nc3 {[%clk 0:01:08.7]}
22. h4 {[%clk 0:02:18.3]} 22... h6 {[%clk 0:01:05.3]} 23. a4 {[%clk 0:02:16.1]}
23... f5 {[%clk 0:01:02.1]} 24. a5 {[%clk 0:02:15.2]} 24... f4 {[%clk 0:01:02]}
25. a6 {[%clk 0:02:10.5]} 25... f3 {[%clk 0:01:02]} 26. Rb7 {[%clk 0:02:06.2]}
26... Rd8 {[%clk 0:00:57.8]} 27. a7 {[%clk 0:02:01.1]} 27... Rd1+ {[%clk
0:00:56.7]} 28. Kh2 {[%clk 0:02:00.8]} 28... fxg2 {[%clk 0:00:53.9]} 29. a8=Q+
{[%clk 0:01:58.4]} 29... Kh7 {[%clk 0:00:54.3]} 30. Rxg7+ {[%clk 0:01:49.3]}
30... Kxg7 {[%clk 0:00:53.9]} 31. Ra7+ {[%clk 0:01:49.2]} 31... Kf6 {[%clk
0:00:54]} 32. Qf8+ {[%clk 0:01:45.6]} 32... Ke5 {[%clk 0:00:53.5]} 33. Bf4+
{[%clk 0:01:36.4]} 33... Kd4 {[%clk 0:00:51.6]} 34. Be3+ {[%clk 0:01:35.2]}
34... Kd3 {[%clk 0:00:47.1]} 35. Kxg2 {[%clk 0:01:31.9]} 35... Ke2 {[%clk
0:00:41.8]} 36. Qxh6 {[%clk 0:01:26.2]} 36... Bd3 {[%clk 0:00:33.7]} 37. Qh5+
{[%clk 0:01:25.6]} 37... Ke1 {[%clk 0:00:32.2]} 38. Kh2 {[%clk 0:01:20.3]} 38...
Be2 {[%clk 0:00:26]} 39. Qa5 {[%clk 0:01:19.3]} 39... Rd3 {[%clk 0:00:17.4]} 40.
Bd4 {[%clk 0:01:18.2]} 40... Kf1 {[%clk 0:00:10.8]} 41. Qxc3 {[%clk 0:01:09.6]}
41... Bg4 {[%clk 0:00:06.3]} 42. Ra1+ {[%clk 0:01:05.5]} 42... Ke2 {[%clk
0:00:04.7]} 43. Re1+ {[%clk 0:01:02.5]} 43... Kf3 {[%clk 0:00:03.4]} 44. Re3+
{[%clk 0:01:02.6]} 44... Kxf2 {[%clk 0:00:02.6]} 45. Rxd3+ {[%clk 0:01:00.9]}
1-0

[Event "Early-Titled-Tuesday-Blitz-April-23-2024"]
[Site "Chess.com"]
[Date "2024.04.23"]
[Round "11"]
[White "Matibar"]
[Black "ReadySkate"]
[Result "1-0"]
[WhiteElo "2864"]
[BlackElo "2675"]
[TimeControl "180+1"]
[EndTime "10:11:02 PDT"]
[Termination "Matibar won by resignation"]

1. Nf3 {[%clk 0:03:00.9]} 1... Nf6 {[%clk 0:03:00]} 2. c4 {[%clk 0:03:00.9]}
2... g6 {[%clk 0:03:00.1]} 3. Nc3 {[%clk 0:02:59.3]} 3... d5 {[%clk 0:03:00.1]}
4. cxd5 {[%clk 0:02:58.4]} 4... Nxd5 {[%clk 0:03:01]} 5. h4 {[%clk 0:02:58.8]}
5... Bg7 {[%clk 0:03:01]} 6. h5 {[%clk 0:02:58.1]} 6... O-O {[%clk 0:03:01.5]}
7. e4 {[%clk 0:02:50]} 7... Nxc3 {[%clk 0:03:00.2]} 8. dxc3 {[%clk 0:02:50]}
8... Qxd1+ {[%clk 0:03:00.6]} 9. Kxd1 {[%clk 0:02:50.9]} 9... Bg4 {[%clk
0:03:00.4]} 10. h6 {[%clk 0:02:50]} 10... Bh8 {[%clk 0:02:56.1]} 11. Be2 {[%clk
0:02:49.5]} 11... Nc6 {[%clk 0:02:56.7]} 12. Bf4 {[%clk 0:02:43.4]} 12... Bxf3
{[%clk 0:02:48.5]} 13. Bxf3 {[%clk 0:02:40.8]} 13... Be5 {[%clk 0:02:49.1]} 14.
Be3 {[%clk 0:02:40.4]} 14... Rad8+ {[%clk 0:02:43.2]} 15. Kc2 {[%clk 0:02:40.4]}
15... b6 {[%clk 0:02:39.7]} 16. Be2 {[%clk 0:02:39.9]} 16... Nb8 {[%clk
0:02:28.3]} 17. f4 {[%clk 0:02:38.6]} 17... Bh8 {[%clk 0:02:23.2]} 18. e5 {[%clk
0:02:38.5]} 18... e6 {[%clk 0:02:15.2]} 19. Bc4 {[%clk 0:02:26.8]} 19... Nc6
{[%clk 0:02:13]} 20. g4 {[%clk 0:02:18.4]} 20... Na5 {[%clk 0:02:12.2]} 21. Bb3
{[%clk 0:02:18.5]} 21... Nxb3 {[%clk 0:01:32.7]} 22. axb3 {[%clk 0:02:17.8]}
22... f6 {[%clk 0:01:33.3]} 23. exf6 {[%clk 0:02:16.2]} 23... Bxf6 {[%clk
0:01:33.9]} 24. Rxa7 {[%clk 0:02:16.2]} 24... e5 {[%clk 0:01:34]} 25. Rxc7
{[%clk 0:01:26.5]} 25... exf4 {[%clk 0:01:32.8]} 26. Bxf4 {[%clk 0:01:26.9]}
26... Bxc3 {[%clk 0:01:27.7]} 27. bxc3 {[%clk 0:01:27.8]} 27... Rxf4 {[%clk
0:01:27.1]} 28. b4 {[%clk 0:01:28.4]} 28... Rxg4 {[%clk 0:01:19.5]} 29. Re1
{[%clk 0:01:23.3]} 29... Rh4 {[%clk 0:01:18.8]} 30. Re6 {[%clk 0:01:22.1]} 30...
b5 {[%clk 0:01:13.1]} 31. Re5 {[%clk 0:01:22.2]} 31... Rb8 {[%clk 0:01:11.9]}
32. Rg7+ {[%clk 0:01:17.9]} 32... Kh8 {[%clk 0:01:10.7]} 33. Rb7 {[%clk
0:01:18.3]} 33... Rc8 {[%clk 0:01:09]} 34. Rexb5 {[%clk 0:01:04.7]} 34... Rxh6
{[%clk 0:01:08.2]} 35. Rb8 {[%clk 0:01:05.1]} 35... Rxb8 {[%clk 0:01:07.5]} 36.
Rxb8+ {[%clk 0:01:06]} 36... Kg7 {[%clk 0:01:08.2]} 37. b5 {[%clk 0:01:04.2]}
37... Rh2+ {[%clk 0:01:06.8]} 38. Kb3 {[%clk 0:01:03.3]} 38... g5 {[%clk
0:01:06.8]} 39. b6 {[%clk 0:01:02.2]} 39... Rh1 {[%clk 0:01:07.3]} 40. b7 {[%clk
0:00:51.7]} 40... Rb1+ {[%clk 0:01:02.8]} 41. Kc2 {[%clk 0:00:51.6]} 41... Rb6
{[%clk 0:00:58.6]} 42. c4 {[%clk 0:00:51.2]} 42... g4 {[%clk 0:00:58.6]} 43. c5
{[%clk 0:00:51.6]} 43... Rb5 {[%clk 0:00:57.1]} 44. c6 {[%clk 0:00:51.3]} 44...
Rc5+ {[%clk 0:00:16.5]} 45. Kd2 {[%clk 0:00:47.5]} 45... Rxc6 {[%clk 0:00:16.5]}
46. Rg8+ {[%clk 0:00:46.7]} 46... Kxg8 {[%clk 0:00:16.4]} 47. b8=Q+ {[%clk
0:00:47.1]} 47... Kg7 {[%clk 0:00:16.6]} 48. Qb7+ {[%clk 0:00:47]} 1-0

[Event "Early-Titled-Tuesday-Blitz-April-23-2024"]
[Site "Chess.com"]
[Date "2024.04.23"]
[Round "11"]
[White "Kotofeyca"]
[Black "karinachess1"]
[Result "0-1"]
[WhiteElo "2508"]
[BlackElo "2618"]
[TimeControl "180+1"]
[EndTime "10:11:05 PDT"]
[Termination "karinachess1 won on time"]

1. d4 {[%clk 0:03:00.9]} 1... Nf6 {[%clk 0:03:00.4]} 2. c4 {[%clk 0:03:00.2]}
2... e6 {[%clk 0:03:01.1]} 3. Nf3 {[%clk 0:02:59.9]} 3... d5 {[%clk 0:03:01.6]}
4. Nc3 {[%clk 0:02:59.8]} 4... Be7 {[%clk 0:03:01.9]} 5. cxd5 {[%clk 0:02:59.8]}
5... exd5 {[%clk 0:03:02.8]} 6. Bg5 {[%clk 0:02:59.7]} 6... c6 {[%clk
0:03:03.4]} 7. Qc2 {[%clk 0:02:59.9]} 7... Nbd7 {[%clk 0:03:03.8]} 8. e3 {[%clk
0:03:00.3]} 8... h6 {[%clk 0:03:04.4]} 9. Bh4 {[%clk 0:03:00.2]} 9... Nh5 {[%clk
0:03:04.8]} 10. Bxe7 {[%clk 0:02:59.4]} 10... Qxe7 {[%clk 0:03:05.7]} 11. O-O-O
{[%clk 0:02:57.4]} 11... Nb6 {[%clk 0:03:05.8]} 12. Ne5 {[%clk 0:02:47.6]} 12...
Be6 {[%clk 0:02:59.2]} 13. f4 {[%clk 0:02:34.9]} 13... O-O-O {[%clk 0:02:57]}
14. g4 {[%clk 0:02:14.7]} 14... Nf6 {[%clk 0:02:57]} 15. f5 {[%clk 0:02:14.1]}
15... Bd7 {[%clk 0:02:57]} 16. h4 {[%clk 0:02:06.1]} 16... Kb8 {[%clk
0:02:50.6]} 17. Bd3 {[%clk 0:02:03.4]} 17... h5 {[%clk 0:02:41]} 18. g5 {[%clk
0:01:55.9]} 18... Ng4 {[%clk 0:02:41.2]} 19. Nxg4 {[%clk 0:01:44.3]} 19... hxg4
{[%clk 0:02:42.1]} 20. Qe2 {[%clk 0:01:40.5]} 20... Rde8 {[%clk 0:02:36.5]} 21.
Rde1 {[%clk 0:01:39.6]} 21... g3 {[%clk 0:02:19.1]} 22. Qf3 {[%clk 0:01:29.7]}
22... Ka8 {[%clk 0:01:52.5]} 23. Qxg3 {[%clk 0:01:28.3]} 23... c5 {[%clk
0:01:53.1]} 24. h5 {[%clk 0:01:18.3]} 24... Rc8 {[%clk 0:01:48.3]} 25. h6 {[%clk
0:01:13.4]} 25... gxh6 {[%clk 0:01:47.6]} 26. Rxh6 {[%clk 0:01:13]} 26... Rhe8
{[%clk 0:01:19]} 27. Rhh1 {[%clk 0:00:49.6]} 27... Rg8 {[%clk 0:01:05.6]} 28. g6
{[%clk 0:00:48.9]} 28... fxg6 {[%clk 0:00:55]} 29. fxg6 {[%clk 0:00:48.9]} 29...
cxd4 {[%clk 0:00:55.6]} 30. exd4 {[%clk 0:00:48.1]} 30... Qb4 {[%clk 0:00:56.2]}
31. Qe3 {[%clk 0:00:37.3]} 31... Na4 {[%clk 0:00:23.3]} 32. Bc2 {[%clk
0:00:15.9]} 32... Qxb2+ {[%clk 0:00:22.5]} 33. Kd2 {[%clk 0:00:13.5]} 33... Rxc3
{[%clk 0:00:22.2]} 34. Rb1 {[%clk 0:00:07.9]} 34... Qxc2+ {[%clk 0:00:22.2]} 0-1

[Event "Early-Titled-Tuesday-Blitz-April-23-2024"]
[Site "Chess.com"]
[Date "2024.04.23"]
[Round "11"]
[White "superchess02"]
[Black "RodTwinkz"]
[Result "0-1"]
[WhiteElo "2869"]
[BlackElo "2711"]
[TimeControl "180+1"]
[EndTime "10:11:09 PDT"]
[Termination "RodTwinkz won by resignation"]

1. d4 {[%clk 0:03:00.9]} 1... Nf6 {[%clk 0:02:59.5]} 2. c4 {[%clk 0:03:01.6]}
2... g6 {[%clk 0:02:59.2]} 3. Nc3 {[%clk 0:03:02.1]} 3... Bg7 {[%clk 0:02:59.8]}
4. e4 {[%clk 0:03:02.2]} 4... O-O {[%clk 0:03:00.7]} 5. f3 {[%clk 0:03:02.7]}
5... c5 {[%clk 0:02:50.1]} 6. d5 {[%clk 0:03:02.3]} 6... d6 {[%clk 0:02:50.2]}
7. Nge2 {[%clk 0:03:00.7]} 7... e6 {[%clk 0:02:47.2]} 8. Ng3 {[%clk 0:03:00.8]}
8... exd5 {[%clk 0:02:47.5]} 9. cxd5 {[%clk 0:03:01.7]} 9... Re8 {[%clk
0:02:47.1]} 10. Be2 {[%clk 0:03:00.8]} 10... Na6 {[%clk 0:02:46.2]} 11. O-O
{[%clk 0:03:00.2]} 11... Nc7 {[%clk 0:02:46.2]} 12. Bg5 {[%clk 0:02:58.6]} 12...
h6 {[%clk 0:02:44.9]} 13. Be3 {[%clk 0:02:56.4]} 13... Bd7 {[%clk 0:02:40.9]}
14. Qd2 {[%clk 0:02:56.1]} 14... Kh7 {[%clk 0:02:40]} 15. a4 {[%clk 0:02:51.1]}
15... a6 {[%clk 0:02:38.3]} 16. a5 {[%clk 0:01:37.4]} 16... Nb5 {[%clk
0:02:25.7]} 17. Na4 {[%clk 0:01:37.4]} 17... Nd4 {[%clk 0:02:16.7]} 18. Nb6
{[%clk 0:01:36.3]} 18... Nb3 {[%clk 0:02:09.2]} 19. Qc2 {[%clk 0:01:32.9]} 19...
Nxa1 {[%clk 0:02:05]} 20. Rxa1 {[%clk 0:01:33.8]} 20... Rb8 {[%clk 0:02:02.3]}
21. Rd1 {[%clk 0:01:24.8]} 21... Bb5 {[%clk 0:02:00.7]} 22. Bc4 {[%clk
0:01:21.2]} 22... Nd7 {[%clk 0:01:55.9]} 23. Nxd7 {[%clk 0:01:10.4]} 23... Qxd7
{[%clk 0:01:53.2]} 24. Ba2 {[%clk 0:00:55.7]} 24... b6 {[%clk 0:01:38.2]} 25.
axb6 {[%clk 0:00:55.1]} 25... Rxb6 {[%clk 0:01:39.1]} 26. Re1 {[%clk 0:00:51.6]}
26... Reb8 {[%clk 0:01:35.3]} 27. b3 {[%clk 0:00:46]} 27... R6b7 {[%clk
0:01:32.2]} 28. f4 {[%clk 0:00:45.5]} 28... c4 {[%clk 0:01:30.6]} 29. bxc4
{[%clk 0:00:39.2]} 29... Ba4 {[%clk 0:01:29.7]} 30. Qc1 {[%clk 0:00:30.9]} 30...
Rb2 {[%clk 0:01:28]} 31. c5 {[%clk 0:00:15.7]} 31... Rxa2 {[%clk 0:01:21.5]} 32.
c6 {[%clk 0:00:16.3]} 32... Qc7 {[%clk 0:01:20]} 33. e5 {[%clk 0:00:16.5]} 33...
Rbb2 {[%clk 0:01:12.6]} 34. Kh1 {[%clk 0:00:14.8]} 34... Rxg2 {[%clk 0:01:09.6]}
35. Bg1 {[%clk 0:00:15.3]} 35... dxe5 {[%clk 0:00:59.1]} 36. Ne4 {[%clk
0:00:13.4]} 36... Rac2 {[%clk 0:00:41.8]} 37. Qa1 {[%clk 0:00:11.9]} 37... Bxc6
{[%clk 0:00:41.2]} 38. dxc6 {[%clk 0:00:12.2]} 38... Qxc6 {[%clk 0:00:42.1]} 39.
fxe5 {[%clk 0:00:05.9]} 39... Rge2 {[%clk 0:00:39.5]} 0-1

[Event "Early-Titled-Tuesday-Blitz-April-23-2024"]
[Site "Chess.com"]
[Date "2024.04.23"]
[Round "11"]
[White "manmanlai1"]
[Black "Louis-Paulsen-Fan"]
[Result "1-0"]
[WhiteElo "2513"]
[BlackElo "2346"]
[TimeControl "180+1"]
[EndTime "10:11:09 PDT"]
[Termination "manmanlai1 won by resignation"]

1. e4 {[%clk 0:02:47.4]} 1... Nf6 {[%clk 0:02:59.7]} 2. e5 {[%clk 0:02:47]} 2...
Nd5 {[%clk 0:03:00]} 3. d4 {[%clk 0:02:47.7]} 3... d6 {[%clk 0:03:00.3]} 4. c4
{[%clk 0:02:48]} 4... Nb6 {[%clk 0:03:00.7]} 5. f4 {[%clk 0:02:48.3]} 5... dxe5
{[%clk 0:03:00.7]} 6. fxe5 {[%clk 0:02:48.4]} 6... c5 {[%clk 0:03:01.3]} 7. d5
{[%clk 0:02:43]} 7... e6 {[%clk 0:03:01.9]} 8. Nc3 {[%clk 0:02:39]} 8... exd5
{[%clk 0:03:01.9]} 9. cxd5 {[%clk 0:02:39.9]} 9... Qh4+ {[%clk 0:03:02]} 10. g3
{[%clk 0:02:32.6]} 10... Qd4 {[%clk 0:03:02.1]} 11. Bb5+ {[%clk 0:01:47.4]}
11... Bd7 {[%clk 0:02:58.4]} 12. Bxd7+ {[%clk 0:01:28.9]} 12... N8xd7 {[%clk
0:02:53.3]} 13. Nf3 {[%clk 0:01:28.9]} 13... Qxd1+ {[%clk 0:02:51.3]} 14. Kxd1
{[%clk 0:01:29.8]} 14... c4 {[%clk 0:02:34.2]} 15. Kc2 {[%clk 0:01:13.5]} 15...
Nc5 {[%clk 0:02:22.8]} 16. Be3 {[%clk 0:00:59.6]} 16... h6 {[%clk 0:02:15.2]}
17. Rad1 {[%clk 0:00:56.2]} 17... O-O-O {[%clk 0:02:12.6]} 18. b3 {[%clk
0:00:43.6]} 18... g5 {[%clk 0:01:40.7]} 19. h3 {[%clk 0:00:39.4]} 19... cxb3+
{[%clk 0:01:28.9]} 20. axb3 {[%clk 0:00:38.5]} 20... Nbd7 {[%clk 0:01:29.2]} 21.
Bd4 {[%clk 0:00:28.2]} 21... Rg8 {[%clk 0:01:21.7]} 22. Rhe1 {[%clk 0:00:20.6]}
22... Be7 {[%clk 0:01:17.2]} 23. e6 {[%clk 0:00:15.7]} 23... fxe6 {[%clk
0:01:15.2]} 24. dxe6 {[%clk 0:00:15.7]} 24... Nf6 {[%clk 0:01:06.3]} 25. b4
{[%clk 0:00:05.4]} 25... Na6 {[%clk 0:01:04.1]} 26. b5 {[%clk 0:00:05]} 26...
Nb4+ {[%clk 0:00:59.9]} 27. Kb3 {[%clk 0:00:04.7]} 27... Nbd5 {[%clk 0:01:00.5]}
28. Nxd5 {[%clk 0:00:02.8]} 28... Nxd5 {[%clk 0:00:58.3]} 29. Be5 {[%clk
0:00:03.3]} 29... b6 {[%clk 0:00:52.3]} 30. Nd4 {[%clk 0:00:03.6]} 30... Nc7
{[%clk 0:00:26.3]} 31. Nc6 {[%clk 0:00:04.5]} 31... Bc5 {[%clk 0:00:25.8]} 32.
Rxd8+ {[%clk 0:00:02.7]} 32... Rxd8 {[%clk 0:00:25.5]} 33. Nxd8 {[%clk
0:00:03.6]} 33... Kxd8 {[%clk 0:00:25.9]} 34. Bxc7+ {[%clk 0:00:04.3]} 34...
Kxc7 {[%clk 0:00:26.5]} 35. e7 {[%clk 0:00:05.1]} 1-0

[Event "Early-Titled-Tuesday-Blitz-April-23-2024"]
[Site "Chess.com"]
[Date "2024.04.23"]
[Round "11"]
[White "Kirill_Klukin"]
[Black "frederiksvane"]
[Result "1-0"]
[WhiteElo "2869"]
[BlackElo "3021"]
[TimeControl "180+1"]
[EndTime "10:11:10 PDT"]
[Termination "Kirill_Klukin won on time"]

1. d4 {[%clk 0:03:00.9]} 1... e6 {[%clk 0:02:59.6]} 2. c4 {[%clk 0:02:59.7]}
2... d5 {[%clk 0:02:59.4]} 3. Nc3 {[%clk 0:02:59.9]} 3... Nf6 {[%clk 0:02:59.7]}
4. cxd5 {[%clk 0:02:59.6]} 4... exd5 {[%clk 0:03:00.6]} 5. Bg5 {[%clk 0:03:00]}
5... c6 {[%clk 0:03:01.3]} 6. e3 {[%clk 0:03:00.3]} 6... Be7 {[%clk 0:03:01.6]}
7. Bd3 {[%clk 0:03:00.7]} 7... O-O {[%clk 0:03:02.3]} 8. Qc2 {[%clk 0:03:01.2]}
8... h6 {[%clk 0:03:02.8]} 9. Bf4 {[%clk 0:03:01.5]} 9... Nh5 {[%clk 0:02:55.5]}
10. Be5 {[%clk 0:03:01.1]} 10... Nd7 {[%clk 0:02:55.8]} 11. Nf3 {[%clk
0:02:56.1]} 11... Re8 {[%clk 0:02:52.7]} 12. h3 {[%clk 0:02:28.5]} 12... Nxe5
{[%clk 0:02:37.4]} 13. dxe5 {[%clk 0:02:28.2]} 13... g6 {[%clk 0:02:38]} 14.
O-O-O {[%clk 0:02:15.9]} 14... Ng7 {[%clk 0:02:38]} 15. g4 {[%clk 0:02:16]}
15... b5 {[%clk 0:02:28.4]} 16. Ne2 {[%clk 0:02:09.8]} 16... Qb6 {[%clk
0:02:14.4]} 17. Nf4 {[%clk 0:01:58.6]} 17... Rd8 {[%clk 0:01:55.1]} 18. Kb1
{[%clk 0:01:40.7]} 18... c5 {[%clk 0:01:47.6]} 19. e4 {[%clk 0:01:23.8]} 19...
c4 {[%clk 0:00:50.1]} 20. Nxd5 {[%clk 0:01:02.8]} 20... Qc5 {[%clk 0:00:20.7]}
21. Be2 {[%clk 0:00:48.5]} 21... Bb7 {[%clk 0:00:20.6]} 22. Nd4 {[%clk
0:00:32.9]} 22... Bxd5 {[%clk 0:00:04.4]} 23. exd5 {[%clk 0:00:33.1]} 23... Rxd5
{[%clk 0:00:05]} 24. Bf3 {[%clk 0:00:32.7]} 24... Rxd4 {[%clk 0:00:05.6]} 25.
Bxa8 {[%clk 0:00:32.8]} 25... Qxe5 {[%clk 0:00:04.9]} 26. Rhe1 {[%clk
0:00:26.5]} 26... Rxd1+ {[%clk 0:00:05.3]} 27. Qxd1 {[%clk 0:00:27]} 27... Qc7
{[%clk 0:00:06.1]} 28. Qf3 {[%clk 0:00:23.4]} 28... Bc5 {[%clk 0:00:03.2]} 29.
Bd5 {[%clk 0:00:24]} 29... Kf8 {[%clk 0:00:02]} 30. a3 {[%clk 0:00:22.7]} 30...
a5 {[%clk 0:00:02.1]} 31. Re2 {[%clk 0:00:20.8]} 31... Bd6 {[%clk 0:00:01.5]}
32. Qc3 {[%clk 0:00:12.3]} 1-0

[Event "Early-Titled-Tuesday-Blitz-April-23-2024"]
[Site "Chess.com"]
[Date "2024.04.23"]
[Round "11"]
[White "Matols"]
[Black "mary-sanna"]
[Result "1-0"]
[WhiteElo "2363"]
[BlackElo "2240"]
[TimeControl "180+1"]
[EndTime "10:11:10 PDT"]
[Termination "Matols won by resignation"]

1. d4 {[%clk 0:03:00.9]} 1... d5 {[%clk 0:03:00.1]} 2. c4 {[%clk 0:03:01.3]}
2... e6 {[%clk 0:03:00.3]} 3. Nf3 {[%clk 0:03:01.8]} 3... Nf6 {[%clk 0:03:00.4]}
4. g3 {[%clk 0:03:02.4]} 4... dxc4 {[%clk 0:03:00.4]} 5. Bg2 {[%clk 0:03:01.9]}
5... Bd7 {[%clk 0:03:00.7]} 6. Ne5 {[%clk 0:03:00.5]} 6... Bc6 {[%clk
0:03:00.9]} 7. Nxc6 {[%clk 0:02:59.8]} 7... Nxc6 {[%clk 0:03:01.8]} 8. e3 {[%clk
0:02:55.3]} 8... Qd7 {[%clk 0:02:54.2]} 9. O-O {[%clk 0:02:53.7]} 9... O-O-O
{[%clk 0:02:53.9]} 10. Nd2 {[%clk 0:02:51.1]} 10... h5 {[%clk 0:02:50]} 11. Nxc4
{[%clk 0:02:49.6]} 11... h4 {[%clk 0:02:49.6]} 12. Qa4 {[%clk 0:02:38.3]} 12...
Kb8 {[%clk 0:02:42.7]} 13. Bxc6 {[%clk 0:02:32.8]} 13... Qxc6 {[%clk 0:02:42.5]}
14. Qxc6 {[%clk 0:02:32.1]} 14... bxc6 {[%clk 0:02:42.7]} 15. Ne5 {[%clk
0:02:32.5]} 15... Rd7 {[%clk 0:02:30.6]} 16. Nxd7+ {[%clk 0:02:30.5]} 16... Nxd7
{[%clk 0:02:31.5]} 17. Bd2 {[%clk 0:02:28.7]} 17... c5 {[%clk 0:02:29.7]} 18.
Rfc1 {[%clk 0:02:27.2]} 18... cxd4 {[%clk 0:02:29.1]} 19. exd4 {[%clk
0:02:28.1]} 19... Bd6 {[%clk 0:02:28.6]} 20. b4 {[%clk 0:02:14.2]} 20... hxg3
{[%clk 0:02:16.5]} 21. hxg3 {[%clk 0:02:15.1]} 21... Rh5 {[%clk 0:02:06.8]} 22.
a4 {[%clk 0:02:13.6]} 22... Rd5 {[%clk 0:02:06.4]} 23. Bc3 {[%clk 0:02:05.2]}
23... Be7 {[%clk 0:02:04.1]} 24. Kg2 {[%clk 0:01:57.4]} 24... Bf6 {[%clk
0:02:03.5]} 25. Rd1 {[%clk 0:01:55.6]} 25... Nb6 {[%clk 0:02:01.4]} 26. a5
{[%clk 0:01:43.1]} 26... Nc4 {[%clk 0:02:00.8]} 27. a6 {[%clk 0:01:42.5]} 27...
g6 {[%clk 0:01:57.2]} 28. Rh1 {[%clk 0:01:38.7]} 28... c6 {[%clk 0:01:55.2]} 29.
Rh7 {[%clk 0:01:31.1]} 29... Rd7 {[%clk 0:01:51.7]} 30. Rd1 {[%clk 0:01:25.9]}
30... Kc7 {[%clk 0:01:48.7]} 31. Kf3 {[%clk 0:01:17.3]} 31... Kb6 {[%clk
0:01:48]} 32. Ra1 {[%clk 0:01:15.6]} 32... Nd6 {[%clk 0:01:44.4]} 33. b5 {[%clk
0:01:00.1]} 33... Nxb5 {[%clk 0:01:41.9]} 34. Ba5+ {[%clk 0:00:59.8]} 34... Kxa6
{[%clk 0:01:34.7]} 35. Bd8+ {[%clk 0:01:00.2]} 35... Kb7 {[%clk 0:01:31.6]} 36.
Bxf6 {[%clk 0:01:00.5]} 36... Nd6 {[%clk 0:01:28.3]} 37. Be5 {[%clk 0:00:59]}
37... Nc4 {[%clk 0:01:25.6]} 38. Rh8 {[%clk 0:00:54.1]} 38... a5 {[%clk
0:01:23.4]} 39. Rb8+ {[%clk 0:00:51.1]} 39... Ka7 {[%clk 0:01:23.5]} 40. Rb4
{[%clk 0:00:43.9]} 40... Nd2+ {[%clk 0:00:50.6]} 41. Ke2 {[%clk 0:00:41.5]}
41... Rd5 {[%clk 0:00:31.8]} 42. Kxd2 {[%clk 0:00:38.8]} 42... Ka6 {[%clk
0:00:32.5]} 43. Rb8 {[%clk 0:00:37.4]} 43... c5 {[%clk 0:00:31.1]} 44. Ra8+
{[%clk 0:00:29.4]} 44... Kb6 {[%clk 0:00:31.3]} 45. R1xa5 {[%clk 0:00:29.2]}
45... cxd4 {[%clk 0:00:31.3]} 46. Rxd5 {[%clk 0:00:29.3]} 46... exd5 {[%clk
0:00:31.6]} 47. Bxd4+ {[%clk 0:00:29.6]} 47... Kb7 {[%clk 0:00:32.5]} 48. Rf8
{[%clk 0:00:29.8]} 1-0

[Event "Early-Titled-Tuesday-Blitz-April-23-2024"]
[Site "Chess.com"]
[Date "2024.04.23"]
[Round "11"]
[White "AlexanderKing"]
[Black "mortngabriel"]
[Result "1-0"]
[WhiteElo "2578"]
[BlackElo "2454"]
[TimeControl "180+1"]
[EndTime "10:11:11 PDT"]
[Termination "AlexanderKing won on time"]

1. g3 {[%clk 0:02:36.4]} 1... c5 {[%clk 0:02:59.2]} 2. Bg2 {[%clk 0:02:37.3]}
2... Nc6 {[%clk 0:02:59.3]} 3. Nf3 {[%clk 0:02:36.7]} 3... g6 {[%clk 0:02:59.3]}
4. O-O {[%clk 0:02:36.4]} 4... Bg7 {[%clk 0:02:59.5]} 5. c4 {[%clk 0:02:37.1]}
5... e5 {[%clk 0:02:58.9]} 6. Nc3 {[%clk 0:02:37]} 6... d6 {[%clk 0:02:59.2]} 7.
a3 {[%clk 0:02:35.5]} 7... a5 {[%clk 0:02:58.7]} 8. Ne1 {[%clk 0:02:33.4]} 8...
Be6 {[%clk 0:02:58.7]} 9. d3 {[%clk 0:01:54.9]} 9... Nge7 {[%clk 0:02:55.5]} 10.
Nc2 {[%clk 0:01:55.5]} 10... d5 {[%clk 0:02:51.9]} 11. cxd5 {[%clk 0:01:55.5]}
11... Nxd5 {[%clk 0:02:52.8]} 12. Bd2 {[%clk 0:01:46.3]} 12... O-O {[%clk
0:02:48.3]} 13. Rb1 {[%clk 0:01:29.6]} 13... Rb8 {[%clk 0:02:24.1]} 14. b4
{[%clk 0:01:21.1]} 14... cxb4 {[%clk 0:02:13.1]} 15. Nxd5 {[%clk 0:01:20.5]}
15... Bxd5 {[%clk 0:02:13.2]} 16. axb4 {[%clk 0:01:16.5]} 16... Bxg2 {[%clk
0:01:58]} 17. Kxg2 {[%clk 0:01:17.4]} 17... a4 {[%clk 0:01:20.5]} 18. b5 {[%clk
0:01:16.2]} 18... Nd4 {[%clk 0:01:20.4]} 19. Nxd4 {[%clk 0:01:07.2]} 19... Qxd4
{[%clk 0:01:21.3]} 20. Bb4 {[%clk 0:01:07.7]} 20... Rfe8 {[%clk 0:00:56.1]} 21.
Qxa4 {[%clk 0:01:01.1]} 21... e4 {[%clk 0:00:52.8]} 22. Qb3 {[%clk 0:00:54]}
22... exd3 {[%clk 0:00:40.8]} 23. Qxd3 {[%clk 0:00:54.9]} 23... Qxd3 {[%clk
0:00:20]} 24. exd3 {[%clk 0:00:55.8]} 24... Rbd8 {[%clk 0:00:18.1]} 25. Rb3
{[%clk 0:00:50.2]} 25... Rd5 {[%clk 0:00:17.4]} 26. Ba5 {[%clk 0:00:49.4]} 26...
Ree5 {[%clk 0:00:15.7]} 27. Rfb1 {[%clk 0:00:45.7]} 27... Bf8 {[%clk 0:00:14.8]}
28. Bc7 {[%clk 0:00:45.9]} 28... Re2 {[%clk 0:00:13.6]} 29. Bb6 {[%clk
0:00:26.1]} 29... Bg7 {[%clk 0:00:07.7]} 30. Be3 {[%clk 0:00:20.2]} 30... Bd4
{[%clk 0:00:06.3]} 31. Kf3 {[%clk 0:00:17.1]} 31... Rc2 {[%clk 0:00:04.9]} 32.
Ke4 {[%clk 0:00:15.1]} 32... Bxe3 {[%clk 0:00:02]} 33. Kxd5 {[%clk 0:00:16]}
33... Bxf2 {[%clk 0:00:02.1]} 34. R1b2 {[%clk 0:00:11.8]} 1-0